lending/lending_fUSD_20250917
["ID","MTS","AMOUNT","RATE_DAILY","PERIOD"]
[385885419,1758094237559,-191.499445,0.00026112,7]
[385885420,1758094237568,-191.499445,0.00026112,7]
[385885421,1758094237577,-191.499445,0.00026112,7]
[385885422,1758094237586,-165.48073083,0.00026211,2]
[385885423,1758094237595,-184636.4146658,0.00026211,2]
[385885424,1758094237605,-178934.165337,0.00026211,2]
[385885425,1758094237613,-38054.1990161,0.00026212,2]
[385885426,1758094237622,-44733.5413343,0.00026212,2]
[385885427,1758094237631,-151.0,0.00026212,7]
[385885428,1758094237640,-151.0,0.00026212,7]
[385885429,1758094237649,-151.0,0.00026212,7]
[385885430,1758094237658,-151.0,0.00026212,7]
[385885431,1758094237668,-151.0,0.00026212,7]
[385885432,1758094237677,-151.0,0.00026212,7]
[385885433,1758094237686,-151.0,0.00026217,7]
[385885434,1758094237695,-151.0,0.00026217,7]
[385885435,1758094237704,-150.0,0.00026217,2]
[385885436,1758094237713,-500.0,0.00026217,2]
[385885437,1758094237722,-500.0,0.00026217,2]
[385885438,1758094237732,-150.0,0.00026217,2]
[385885439,1758094237743,-150.0,0.00026217,2]
[385885440,1758094237752,-500.0,0.00026217,2]
[385885442,1758094237761,-150.0,0.00026217,2]
[385885444,1758094237771,-500.0,0.00026217,2]
[385885446,1758094237781,-150.0,0.00026217,2]
[385885449,1758094237790,-151.0,0.00026221,7]
[385885451,1758094237799,-151.0,0.00026221,7]
[385885452,1758094237809,-151.0,0.00026221,7]
[385885454,1758094237818,-214.025341,0.00026221,7]
[385885457,1758094237827,-151.0,0.00026221,7]
[385885459,1758094237837,-151.0,0.00026222,7]
[385885460,1758094237846,-151.0,0.00026222,7]
[385885462,1758094237856,-151.0,0.00026222,7]
[385885464,1758094237864,-151.0,0.00026222,7]
[385885466,1758094237874,-158.811908,0.00026222,7]
[385885469,1758094237883,-151.0,0.00026222,7]
[385885470,1758094237892,-165.424705,0.00026222,7]
[385885471,1758094237902,-151.0,0.00026222,7]
[385885472,1758094237913,-151.0,0.00026222,7]
[385885473,1758094237922,-237.753893,0.00026222,7]
[385885474,1758094237931,-151.0,0.00026222,7]
[385885475,1758094237939,-151.0,0.00026222,7]
[385885476,1758094237948,-151.0,0.00026222,7]
[385885477,1758094237957,-290.229921,0.00026222,7]
[385885478,1758094237966,-151.0,0.00026222,7]
[385885479,1758094237975,-19027.0995081,0.00026223,2]
[385885480,1758094237984,-14911.1804448,0.00026223,2]
[385885481,1758094237993,-151.0,0.00026232,7]
[385885482,1758094238002,-199.6,0.00026232,7]
[385885483,1758094238011,-167.66794,0.00026232,7]
[385885484,1758094238020,-199.6,0.00026232,7]
[385885485,1758094238030,-199.6,0.00026232,7]
[385885486,1758094238039,-199.6,0.00026232,7]
[385885487,1758094238048,-169.074687,0.00026232,7]
[385885488,1758094238057,-500.0,0.00026232,2]
[385885489,1758094238066,-474.0,0.00026232,2]
[385885490,1758094238075,-2738.0,0.00026232,2]
[385885491,1758094238084,-150.0,0.00026232,2]
[385885492,1758094238094,-509.0,0.00026232,2]
[385885493,1758094238103,-500.0,0.00026232,2]
[385885494,1758094238111,-150.0,0.00026232,2]
[385885495,1758094238120,-12486.0557455,0.00026233,2]
[385885496,1758094238129,-4177.8841539,0.00026233,2]
[385885497,1758094238138,-689.6219306,0.00026233,2]
[385885498,1758094238147,-151.0,0.00026233,7]
[385885499,1758094238156,-2807.1318494,0.00026233,2]
[385885500,1758094238165,-47821.2030557,0.00026233,2]
[385885501,1758094238174,-214.17,0.0002627,2]
[385885502,1758094238183,-500.0,0.00026273,2]
[385885503,1758094238192,-804.63,0.00026288,2]
[385885504,1758094238201,-675.83456909,0.00026303,2]
[385885505,1758094238209,-8572.23525859,0.00026305,2]
[385885506,1758094238218,-156.15,0.00026311,2]
[385885507,1758094238227,-151.0,0.00026323,7]
[385885508,1758094238236,-151.0,0.00026323,7]
[385885509,1758094238246,-151.0,0.00026323,7]
[385885510,1758094238255,-151.0,0.00026323,7]
[385885511,1758094238263,-151.0,0.00026323,7]
[385885512,1758094238272,-264.539589,0.00026323,7]
[385885513,1758094238281,-19027.0995081,0.00026343,2]
[385885514,1758094238291,-14911.1804448,0.00026343,2]
[385885515,1758094238300,-11259.37574866,0.00026353,2]
[385885516,1758094238309,-199.19,0.0002638,2]
[385885517,1758094238318,-1393.14,0.00026384,2]
[385885518,1758094238327,-161.88101599,0.00026387,2]
[385885519,1758094238336,-14911.1804448,0.00026477,2]
[385885520,1758094238345,-19027.0995081,0.00026487,2]
[385885521,1758094238354,-14911.1804448,0.00026487,2]
[385885522,1758094238363,-19027.0995081,0.00026487,2]
[385885523,1758094238373,-151.0,0.00026487,7]
[385885524,1758094238382,-14911.1804448,0.00026488,2]
[385885525,1758094238391,-500.0,0.00026491,2]
[385885526,1758094238401,-500.0,0.00026491,2]
[385885527,1758094238410,-500.0,0.00026491,2]
[385885528,1758094238419,-500.0,0.00026491,2]
[385885529,1758094238428,-150.0,0.00026491,2]
[385885530,1758094238437,-33692.58811954,0.00026497,2]
[385885531,1758094238446,-154.506146,0.00026497,7]
[385885532,1758094238455,-151.0,0.00026497,7]
[385885533,1758094238464,-199.6,0.00026497,7]
[385885534,1758094238473,-199.6,0.00026497,7]
[385885535,1758094238482,-199.6,0.00026497,7]
[385885536,1758094238492,-199.6,0.00026497,7]
[385885537,1758094238501,-516.07479255,0.00026497,7]
[385885538,1758094238513,-151.0,0.00026497,7]
[385885539,1758094238522,-151.0,0.00026497,7]
[385885540,1758094238531,-151.0,0.00026497,7]
[385885541,1758094238540,-8572.23525859,0.00026497,2]
[385885542,1758094238549,-14911.1804448,0.00026503,2]
[385885543,1758094238558,-500.0,0.00026506,2]
[385885544,1758094238566,-474.0,0.00026506,2]
[385885545,1758094238576,-2738.0,0.00026506,2]
[385885546,1758094238586,-509.0,0.00026506,2]
[385885547,1758094238595,-500.0,0.00026506,2]
[385885548,1758094238604,-150.0,0.00026506,2]
[385885549,1758094238614,-151.0,0.00026508,7]
[385885550,1758094238624,-151.0,0.00026508,7]
[385885551,1758094238634,-217.065916,0.00026508,7]
[385885552,1758094238643,-151.0,0.00026508,7]
[385885553,1758094238652,-151.0,0.00026508,7]
[385885554,1758094238661,-600.0,0.00026529,2]
[385885555,1758094238671,-14911.1804448,0.00026588,2]
[385885556,1758094238680,-151.0,0.00026592,7]
[385885557,1758094238690,-151.0,0.00026592,7]
[385885558,1758094238699,-239.197538,0.00026592,7]
[385885559,1758094238709,-11259.37574866,0.00026597,2]
[385885560,1758094238719,-900.0,0.000266,9]
[385885561,1758094238729,-150.0,0.00026606,2]
[385885562,1758094238738,-150.0,0.00026606,2]
[385885563,1758094238748,-150.0,0.00026606,2]
[385885564,1758094238757,-150.0,0.00026606,2]
[385885565,1758094238767,-500.0,0.00026606,2]
[385885566,1758094238776,-150.0,0.00026606,2]
[385885567,1758094238786,-150.0,0.00026606,2]
[385885568,1758094238796,-155.895,0.00026607,2]
[385885569,1758094238805,-150.0,0.00026608,7]
[385885570,1758094238815,-150.0,0.00026608,7]
[385885571,1758094238824,-500.0,0.00026608,7]
[385885572,1758094238834,-150.0,0.00026608,7]
[385885573,1758094238843,-500.0,0.00026608,7]
[385885574,1758094238852,-500.0,0.00026608,7]
[385885575,1758094238862,-150.0,0.00026608,7]
[385885576,1758094238871,-500.0,0.00026608,7]
[385885577,1758094238881,-151.0,0.00026608,7]
[385885578,1758094238891,-151.0,0.00026608,7]
[385885579,1758094238900,-199.6,0.00026608,7]
[385885580,1758094238909,-199.6,0.00026608,7]
[385885581,1758094238918,-199.6,0.00026608,7]
[385885582,1758094238929,-199.6,0.00026608,7]
[385885583,1758094238939,-315.08,0.00026617,2]
[385885584,1758094238948,-151.0,0.00026667,7]
[385885585,1758094238957,-151.0,0.00026667,7]
[385885586,1758094238967,-8572.23525859,0.0002669,2]
[385885587,1758094238976,-1300.0,0.000267,9]
[385885588,1758094238985,-2602.41326925,0.00026716,2]
[385885589,1758094238995,-500.0,0.00026721,2]
[385885590,1758094239005,-500.0,0.00026765,2]
[385885591,1758094239014,-500.0,0.00026765,2]
[385885592,1758094239023,-500.0,0.00026765,2]
[385885593,1758094239033,-500.0,0.00026765,2]
[385885594,1758094239043,-150.0,0.00026765,2]
[385885595,1758094239052,-14911.1804448,0.00026771,2]
[385885596,1758094239061,-500.0,0.0002678,2]
[385885597,1758094239071,-474.0,0.0002678,2]
[385885598,1758094239080,-2738.0,0.0002678,2]
[385885599,1758094239090,-509.0,0.0002678,2]
[385885600,1758094239099,-500.0,0.0002678,2]
[385885601,1758094239109,-150.0,0.0002678,2]
[385885602,1758094239118,-151.0,0.00026799,7]
[385885603,1758094239128,-199.6,0.000268,7]
[385885604,1758094239137,-199.6,0.000268,7]
[385885605,1758094239147,-199.6,0.000268,7]
[385885606,1758094239157,-199.6,0.000268,7]
[385885607,1758094239166,-1800.0,0.000268,9]
[385885608,1758094239176,-502.95861149,0.00026821,2]
[385885609,1758094239185,-11259.37574866,0.0002684,2]
[385885610,1758094239195,-14911.1804448,0.0002686,2]
[385885611,1758094239204,-496.0,0.0002687,2]
[385885612,1758094239214,-150.0,0.0002688,2]
[385885613,1758094239224,-150.0,0.0002688,2]
[385885614,1758094239234,-500.0,0.0002688,2]
[385885615,1758094239244,-200.0,0.0002688,2]
[385885616,1758094239253,-150.0,0.0002688,2]
[385885617,1758094239263,-150.0,0.00026882,7]
[385885618,1758094239273,-223.88145701,0.00026882,7]
[385885619,1758094239283,-500.0,0.00026882,7]
[385885620,1758094239292,-150.0,0.00026882,7]
[385885621,1758094239302,-500.0,0.00026882,7]
[385885622,1758094239312,-500.0,0.00026882,7]
[385885623,1758094239322,-150.0,0.00026882,7]
[385885624,1758094239331,-500.0,0.00026882,7]
[385885625,1758094239341,-8572.23525859,0.00026882,2]
[385885626,1758094239350,-2300.0,0.000269,9]
[385885627,1758094239359,-1305.32321267,0.000269,2]
[385885628,1758094239369,-151.0,0.00026953,7]
[385885629,1758094239378,-151.0,0.00026953,7]
[385885630,1758094239389,-161.87,0.0002696,2]
[385885631,1758094239398,-14911.1804448,0.00026976,2]
[385885632,1758094239407,-183.208148,0.00026986,7]
[385885633,1758094239417,-199.6,0.00026986,7]
[385885634,1758094239426,-199.6,0.00026986,7]
[385885635,1758094239436,-199.6,0.00026986,7]
[385885636,1758094239445,-199.599999,0.00026986,7]
[385885637,1758094239455,-59644.7217791,0.0002699,2]
[385885638,1758094239464,-2129.81715468,0.00027,2]
[385885639,1758094239473,-8785.1589754,0.00027,2]
[385885640,1758094239483,-131850.88934762,0.00027,2]
[385885641,1758094239493,-675.83456909,0.0002701,2]
[385885642,1758094239502,-500.0,0.00027039,2]
[385885643,1758094239515,-461.96478205,0.00027039,2]
[385885644,1758094239526,-500.0,0.00027039,2]
[385885645,1758094239539,-500.0,0.00027039,2]
[385885646,1758094239550,-150.0,0.00027039,2]
[385885647,1758094239560,-151.0,0.00027039,7]
[385885648,1758094239569,-151.0,0.00027039,7]
[385885649,1758094239579,-500.0,0.00027054,2]
[385885650,1758094239590,-474.0,0.00027054,2]
[385885651,1758094239601,-2738.0,0.00027054,2]
[385885652,1758094239611,-509.0,0.00027054,2]
[385885653,1758094239621,-500.0,0.00027054,2]
[385885654,1758094239630,-150.0,0.00027054,2]
[385885655,1758094239640,-315.08,0.00027062,2]
[385885656,1758094239650,-8572.23525859,0.00027075,2]
[385885657,1758094239660,-600.0,0.00027077,2]
[385885658,1758094239670,-11259.37574866,0.00027084,2]
[385885659,1758094239681,-1305.26,0.000271,2]
[385885660,1758094239692,-629.01806078,0.00027105,2]
[385885661,1758094239702,-3460.69782574,0.00027105,2]
[385885662,1758094239711,-151.0,0.00027139,7]
[385885663,1758094239722,-151.0,0.00027139,7]
[385885664,1758094239732,-152.26027051,0.00027154,2]
[385885665,1758094239742,-200.0,0.00027154,2]
[385885666,1758094239752,-500.0,0.00027154,2]
[385885667,1758094239762,-150.0,0.00027154,2]
[385885668,1758094239771,-150.0,0.00027156,7]
[385885669,1758094239781,-611.72239619,0.00027156,7]
[385885670,1758094239791,-221.15401675,0.00027156,7]
[385885671,1758094239801,-500.0,0.00027156,7]
[385885672,1758094239812,-500.0,0.00027156,7]
[385885673,1758094239822,-150.0,0.00027156,7]
[385885674,1758094239832,-155.97839146,0.00027156,7]
[385885675,1758094239842,-150.0,0.0002717,2]
[385885676,1758094239852,-495.1219611,0.00027172,2]
[385885677,1758094239862,-213.08185561,0.00027173,2]
[385885678,1758094239871,-506.53762303,0.00027173,2]
[385885679,1758094239881,-500.0,0.00027173,2]
[385885680,1758094239891,-500.0,0.00027173,2]
[385885681,1758094239900,-500.0,0.00027173,2]
[385885682,1758094239910,-500.0,0.00027173,2]
[385885683,1758094239920,-587.14935801,0.00027173,2]
[385885684,1758094239930,-502.29989803,0.00027173,2]
[385885685,1758094239940,-500.0,0.00027173,2]
[385885686,1758094239950,-500.0,0.00027173,2]
[385885687,1758094239960,-504.39157314,0.00027173,2]
[385885688,1758094239970,-200.0,0.00027173,2]
[385885689,1758094239980,-500.0,0.00027173,2]
[385885690,1758094239989,-458.85179946,0.00027173,2]
[385885691,1758094239999,-502.12885838,0.00027173,2]
[385885692,1758094240009,-503.01692135,0.00027173,2]
[385885693,1758094240019,-500.0,0.00027173,2]
[385885694,1758094240028,-514.83774384,0.00027173,2]
[385885695,1758094240039,-519.52184494,0.00027173,2]
[385885697,1758094240048,-631.03779356,0.00027174,2]
[385885699,1758094240058,-166.89,0.00027175,2]
[385885701,1758094240068,-766.95362602,0.00027176,2]
[385885703,1758094240078,-902.86945848,0.00027177,2]
[385885706,1758094240089,-362.0,0.00027178,2]
[385885709,1758094240099,-1038.78529094,0.00027179,2]
[385885711,1758094240108,-1174.70112339,0.00027181,2]
[385885713,1758094240118,-1310.61695585,0.00027183,2]
[385885715,1758094240127,-1446.53278831,0.00027185,2]
[385885717,1758094240137,-300.0,0.00027186,10]
[385885719,1758094240147,-300.0,0.00027186,10]
[385885721,1758094240156,-1582.44862077,0.00027187,2]
[385885723,1758094240166,-300.0,0.00027196,10]
[385885725,1758094240176,-300.0,0.00027196,10]
[385885727,1758094240185,-1058650.50227759,0.00027197,2]
[385885741,1758094240974,-571.34611784,0.00027197,2]
[385885742,1758094240990,-210694.87023636,0.00027197,2]
[385885743,1758094241028,-1158.7614,0.00027197,2]
[385885744,1758094241040,-4635.33484838,0.00027197,2]
[385885745,1758094241790,-873.85779266,0.00025851,2]
[385885746,1758094241801,-799.35458105,0.00027197,2]
[385885747,1758094241812,-4635.00000001,0.00027197,2]
[385885748,1758094241828,-2356.21803275,0.00027197,2]
[385885749,1758094241839,-4634.00000002,0.00027197,2]
[385885759,1758094245529,-150.35650516,0.00025622,2]
[385885760,1758094245539,-197.95821899,0.00026112,2]
[385885761,1758094245548,-6205.27635516,0.00027197,2]
[385885762,1758094245561,-1333.20533533,0.00027197,2]
[385885921,1758094327111,158.13,0.0001169,2]
[385885922,1758094327378,158.13,0.00012378,2]
[385885923,1758094327534,158.13,0.00013065,2]
[385885924,1758094327977,158.13,0.00013753,2]
[385885925,1758094328151,158.13,0.0001444,2]
[385885926,1758094328393,158.13,0.00015128,2]
[385885927,1758094328594,158.13,0.00015816,2]
[385885928,1758094328799,158.13,0.00016503,2]
[385885929,1758094328995,158.13,0.00017191,2]
[385885930,1758094329314,158.13,0.00017879,2]
[385885931,1758094329503,158.13,0.00018566,2]
[385885932,1758094329706,158.13,0.00019254,2]
[385885963,1758095234638,153.32,0.00012732,2]
[385885964,1758095234832,153.32,0.00014853,2]
[385885965,1758095235037,153.32,0.00016975,2]
[385885966,1758095235241,153.32,0.00019097,2]
[385885972,1758095431839,-158.13,0.00019942,2]
[385885973,1758095431848,-158.13,0.00020629,2]
[385885974,1758095431858,-108.90584054,0.00021219,2]
[385885975,1758095431869,-44.41415946,0.00021219,2]
[385885976,1758095431879,-158.13,0.00021317,2]
[385885977,1758095431888,-1394.0,0.000214,5]
[385885978,1758095431899,-250.0,0.00021936,2]
[385885979,1758095431918,-158.13,0.00022005,2]
[385885980,1758095431941,-158.13,0.00022692,2]
[385885981,1758095431951,-153.32,0.00023341,2]
[385885982,1758095431960,-1808.84,0.0002338,2]
[385885983,1758095431969,-250.0,0.0002338,2]
[385885984,1758095431979,-158.13,0.0002338,2]
[385885985,1758095431988,-369.06,0.0002454,3]
[385885986,1758095431997,-1000.0,0.00024656,2]
[385885987,1758095432006,-173.23,0.00024658,2]
[385885988,1758095432015,-214.17,0.00024702,2]
[385885989,1758095432025,-1200.0,0.00024704,2]
[385885990,1758095432034,-300.0,0.00024705,2]
[385885991,1758095432043,-300.0,0.00024706,2]
[385885992,1758095432056,-300.0,0.00024706,2]
[385885993,1758095432065,-165.68517026,0.00024707,2]
[385885994,1758095432075,-150.0,0.00024707,2]
[385885995,1758095432085,-150.0,0.00024707,2]
[385885996,1758095432094,-251.36682096,0.00024707,2]
[385885997,1758095432105,-150.0,0.00024707,2]
[385885998,1758095432114,-272.57810676,0.00024707,2]
[385885999,1758095432123,-154.70044452,0.00024707,2]
[385886000,1758095432132,-155.50907619,0.00024707,2]
[385886001,1758095432142,-151.0,0.00024885,2]
[385886002,1758095432151,-151.0,0.00024885,2]
[385886003,1758095432160,-151.0,0.00024885,2]
[385886004,1758095432170,-600.0,0.00024885,2]
[385886005,1758095432179,-151.0,0.00024885,2]
[385886006,1758095432188,-151.0,0.00024885,2]
[385886007,1758095432198,-151.0,0.00024885,2]
[385886008,1758095432207,-151.0,0.00024885,2]
[385886010,1758095432216,-210.00672626,0.00024885,2]
[385886012,1758095432226,-500.0,0.00024885,2]
[385886014,1758095432235,-500.0,0.00024885,2]
[385886016,1758095432244,-500.0,0.00024885,2]
[385886018,1758095432253,-500.0,0.00024885,2]
[385886020,1758095432263,-500.0,0.00024885,2]
[385886022,1758095432272,-500.0,0.00024885,2]
[385886024,1758095432282,-500.0,0.00024885,2]
[385886026,1758095432291,-500.0,0.00024885,2]
[385886028,1758095432300,-500.0,0.00024885,2]
[385886030,1758095432309,-500.0,0.00024885,2]
[385886032,1758095432319,-500.0,0.00024885,2]
[385886034,1758095432328,-202.03040385,0.00024885,2]
[385886036,1758095432337,-200.0,0.00024885,2]
[385886038,1758095432346,-19945.41463335,0.000249,2]
[385886039,1758095432356,-200.0,0.000251,7]
[385886040,1758095432365,-458.0,0.000252,2]
[385886041,1758095432374,-170.71,0.00025324,2]
[385886042,1758095432384,-1671.0,0.00025386,2]
[385886043,1758095432393,-374.0,0.00025406,7]
[385886045,1758095432404,-150.0,0.00025421,7]
[385886046,1758095432413,-600.0,0.00025433,2]
[385886048,1758095432422,-177.09,0.00025463,2]
[385886049,1758095432431,-153.32,0.00025463,2]
[385886050,1758095432440,-295.0,0.00025497,2]
[385886051,1758095432450,-150.0,0.00025562,2]
[385886052,1758095432459,-1192.69,0.00025562,2]
[385886053,1758095432469,-411.23,0.00025562,2]
[385886054,1758095432478,-174.95,0.00025562,2]
[385886055,1758095432488,-411.23,0.00025562,2]
[385886056,1758095432497,-150.0,0.00025562,2]
[385886057,1758095432506,-308.7,0.00025562,2]
[385886058,1758095432516,-174.95,0.00025562,2]
[385886059,1758095432525,-1791.7,0.00025562,2]
[385886060,1758095432534,-411.23,0.00025562,2]
[385886061,1758095432544,-174.95,0.00025562,2]
[385886062,1758095432554,-543.25,0.00025575,2]
[385886063,1758095432563,-334.36,0.00025575,2]
[385886064,1758095432572,-334.36,0.00025575,2]
[385886065,1758095432582,-334.36,0.00025575,2]
[385886066,1758095432591,-1192.69,0.00025575,2]
[385886067,1758095432601,-410.13,0.00025678,2]
[385886068,1758095432611,-150.58,0.00025678,2]
[385886069,1758095432620,-150.0,0.00025678,2]
[385886070,1758095432630,-411.23,0.00025678,2]
[385886071,1758095432640,-1192.69,0.00025678,2]
[385886072,1758095432650,-177.83535137,0.00025867,2]
[385886073,1758095432659,-500.0,0.00025867,2]
[385886074,1758095432670,-500.0,0.00025867,2]
[385886075,1758095432680,-500.0,0.00025867,2]
[385886076,1758095432689,-500.0,0.00025867,2]
[385886077,1758095432699,-500.0,0.00025867,2]
[385886078,1758095432709,-500.0,0.00025867,2]
[385886079,1758095432718,-500.0,0.00025867,2]
[385886080,1758095432728,-500.0,0.00025867,2]
[385886081,1758095432737,-500.0,0.00025867,2]
[385886082,1758095432746,-500.0,0.00025867,2]
[385886083,1758095432756,-500.0,0.00025867,2]
[385886084,1758095432765,-500.0,0.00025867,2]
[385886085,1758095432775,-500.0,0.00025867,2]
[385886086,1758095432785,-500.0,0.00025867,2]
[385886087,1758095432794,-500.0,0.00025867,2]
[385886088,1758095432804,-500.0,0.00025867,2]
[385886089,1758095432815,-500.0,0.00025867,2]
[385886090,1758095432824,-500.0,0.00025867,2]
[385886091,1758095432833,-500.0,0.00025867,2]
[385886092,1758095432843,-500.0,0.00025867,2]
[385886093,1758095432853,-500.0,0.00025867,2]
[385886094,1758095432862,-500.0,0.00025867,2]
[385886095,1758095432871,-500.0,0.00025867,2]
[385886096,1758095432881,-500.0,0.00025867,2]
[385886097,1758095432891,-592.69398198,0.00025867,2]
[385886098,1758095432901,-500.0,0.00025867,2]
[385886099,1758095432910,-500.0,0.00025867,2]
[385886100,1758095432919,-500.0,0.00025867,2]
[385886101,1758095432929,-500.0,0.00025867,2]
[385886102,1758095432938,-500.0,0.00025867,2]
[385886103,1758095432948,-500.0,0.00025867,2]
[385886104,1758095432958,-500.0,0.00025867,2]
[385886105,1758095432967,-500.0,0.00025867,2]
[385886106,1758095432977,-500.0,0.00025867,2]
[385886107,1758095432986,-200.0,0.00025867,2]
[385886108,1758095432996,-156.28,0.00025868,2]
[385886109,1758095433005,-2157.76,0.00025868,2]
[385886110,1758095433015,-374.0,0.0002587,2]
[385886111,1758095433024,-600.0,0.00025981,2]
[385886112,1758095433034,-295.0,0.00025992,7]
[385886113,1758095433044,-200.0,0.000261,7]
[385886114,1758095433057,-226.0,0.00026123,2]
[385886115,1758095433067,-226.0,0.00026212,2]
[385886116,1758095433077,-216.0,0.00026288,2]
[385886117,1758095433086,-1500.0,0.00026296,2]
[385886118,1758095433098,-1104.0,0.000263,2]
[385886119,1758095433108,-500.0,0.00026376,2]
[385886120,1758095433118,-448.0,0.0002638,2]
[385886121,1758095433127,-2385.38,0.00026384,2]
[385886122,1758095433138,-411.23,0.00026384,2]
[385886123,1758095433148,-152.29,0.00026384,2]
[385886124,1758095433159,-171.38,0.00026384,2]
[385886125,1758095433169,-411.23,0.00026384,2]
[385886126,1758095433179,-150.0,0.00026384,2]
[385886127,1758095433190,-1103.35,0.00026384,2]
[385886128,1758095433200,-411.23,0.00026384,2]
[385886129,1758095433210,-150.0,0.00026384,2]
[385886130,1758095433219,-411.23,0.00026384,2]
[385886131,1758095433229,-150.0,0.00026384,2]
[385886132,1758095433239,-885.93,0.00026384,2]
[385886133,1758095433249,-150.0,0.00026384,2]
[385886134,1758095433258,-1085.84,0.00026384,2]
[385886135,1758095433268,-150.0,0.00026384,2]
[385886136,1758095433277,-150.0,0.00026384,2]
[385886137,1758095433287,-150.0,0.00026384,2]
[385886138,1758095433297,-150.0,0.00026384,2]
[385886139,1758095433306,-150.0,0.00026384,2]
[385886140,1758095433316,-543.25,0.00026384,2]
[385886141,1758095433325,-543.25,0.00026384,2]
[385886142,1758095433335,-150.0,0.00026384,2]
[385886143,1758095433345,-167.18,0.00026397,2]
[385886144,1758095433355,-460.14307017,0.00026397,2]
[385886145,1758095433369,-1925.23692983,0.00026397,2]
[385886146,1758095433379,-349.9,0.00026397,2]
[385886147,1758095433388,-174.95,0.00026397,2]
[385886148,1758095433397,-1192.69,0.00026397,2]
[385886149,1758095433408,-1191.25,0.00026397,2]
[385886150,1758095433418,-349.72,0.00026397,2]
[385886151,1758095433427,-543.25,0.00026397,2]
[385886152,1758095433437,-543.25,0.00026397,2]
[385886153,1758095433446,-543.25,0.00026397,2]
[385886154,1758095433455,-543.25,0.00026397,2]
[385886155,1758095433465,-543.25,0.00026397,2]
[385886156,1758095433475,-543.25,0.00026397,2]
[385886157,1758095433484,-543.25,0.00026397,2]
[385886158,1758095433493,-543.25,0.00026397,2]
[385886159,1758095433503,-159.55,0.00026397,2]
[385886160,1758095433512,-226.0,0.00026405,2]
[385886161,1758095433522,-226.0,0.00026459,2]
[385886162,1758095433531,-2447.78672791,0.00026465,2]
[385886163,1758095433541,-151.0,0.00026502,2]
[385886164,1758095433550,-250.0,0.00026502,2]
[385886165,1758095433559,-257.91778498,0.00026502,2]
[385886166,1758095433568,-160.0,0.00026502,2]
[385886167,1758095433578,-250.0,0.00026502,2]
[385886168,1758095433587,-250.0,0.00026502,2]
[385886169,1758095433597,-151.0,0.00026502,2]
[385886170,1758095433607,-250.0,0.00026502,2]
[385886171,1758095433617,-151.0,0.00026502,2]
[385886172,1758095433626,-250.0,0.00026502,2]
[385886173,1758095433637,-1000.0,0.00026502,2]
[385886174,1758095433646,-250.0,0.00026502,2]
[385886175,1758095433655,-151.0,0.00026502,2]
[385886176,1758095433665,-1000.0,0.00026502,2]
[385886177,1758095433675,-250.0,0.00026502,2]
[385886178,1758095433684,-151.0,0.00026502,2]
[385886179,1758095433694,-250.0,0.00026502,2]
[385886180,1758095433704,-1000.0,0.00026502,2]
[385886181,1758095433714,-151.0,0.00026502,2]
[385886182,1758095433723,-1000.0,0.00026502,2]